bitfinex-derivatives/quotes_ETHF0:USTF0_20260119
["timestamp","ask_amount","ask_price","bid_price","bid_amount"]
[1768864000700,0.15728,3181.1,3179.1,0.02035145]
[1768864000905,0.15728,3181.1,3179.2,3.4890162]
[1768864001106,0.15728,3181.1,3179.3,6.6350162]
[1768864001706,0.15733,3180.0,3179.1,0.02035145]
[1768864002205,3.59636202,3180.7,3179.1,0.02035145]
[1768864002411,0.15731,3180.5,3179.1,3.16635145]
[1768864002920,0.15732,3180.2,3179.1,0.02035145]
[1768864010315,0.15732,3180.2,3179.6,0.03510089]
[1768864011308,0.15732,3180.2,3179.1,0.02035145]
[1768864011613,0.15733,3180.0,3179.1,0.02035145]
[1768864016120,0.1573,3180.6,3179.1,0.02035145]
[1768864016308,0.8593502,3180.5,3179.1,0.02035145]
[1768864016510,0.8593502,3180.4,3179.1,0.02035145]
[1768864016718,0.1573,3180.6,3179.1,0.02035145]
[1768864017013,1.0170333,3180.5,3179.1,0.02035145]
[1768864017315,0.8597233,3180.4,3179.1,0.02035145]
[1768864017519,0.15733,3180.0,3179.1,0.02035145]
[1768864018220,3.27759173,3180.4,3179.1,0.02035145]
[1768864018409,0.8600463,3180.3,3179.1,0.02035145]
[1768864018605,3.27759173,3180.4,3179.1,0.02035145]
[1768864018811,4.38844608,3180.9,3179.1,3.36676822]
[1768864019017,0.86013064,3180.8,3179.1,3.36676822]
[1768864019218,0.86013064,3180.7,3179.1,3.36676822]
[1768864019423,0.86013064,3180.6,3179.1,3.36676822]
[1768864019715,3.27759173,3180.9,3179.1,3.36676822]
[1768864019917,0.86047782,3180.8,3179.2,3.147]
[1768864020109,0.86047782,3180.7,3179.2,3.147]
[1768864020310,4.29536955,3180.6,3179.1,0.02035145]
[1768864020510,4.13806955,3180.5,3179.1,0.02035145]
[1768864020710,4.13806955,3180.5,3177.1,7.10092918]
[1768864020711,3.27759173,3179.4,3177.1,7.10092918]
[1768864020915,3.27759173,3179.4,3176.6,3.34641677]
[1768864020916,3.43499173,3178.7,3176.6,3.34641677]
[1768864021107,0.15742,3178.2,3176.6,3.34641677]
[1768864021313,0.86011023,3178.1,3176.6,3.34641677]
[1768864021518,3.27759173,3178.5,3176.8,6.72986223]
[1768864021712,0.49220052,3178.4,3177.3,3.34641677]
[1768864021920,0.49220052,3178.4,3176.8,0.00331837]
[1768864021921,0.49220052,3178.3,3177.8,0.01607789]
[1768864022119,0.49220052,3178.2,3176.8,3.34973514]
[1768864022422,0.49220052,3178.1,3177.3,6.72986223]
[1768864022614,0.00306889,3178.5,3177.5,6.72986223]
[1768864023019,0.00306889,3178.5,3177.1,6.49341677]
[1768864023320,0.00306889,3178.5,3177.8,0.01663788]
[1768864023725,0.00306889,3178.5,3178.1,0.02495696]
[1768864023919,3.27759173,3179.1,3178.1,0.02495696]
[1768864024111,3.27759173,3179.1,3177.1,3.147]
[1768864024112,4.54579608,3179.7,3178.6,0.0332759]
[1768864024311,0.89138255,3179.6,3178.6,0.0332759]
[1768864024512,0.89138255,3179.5,3177.8,3.34641677]
[1768864024721,0.15735,3179.7,3177.5,3.34641677]
[1768864025022,0.00225215,3179.7,3177.7,3.34641677]
[1768864025321,0.00225215,3179.7,3178.7,0.04144195]
[1768864025817,0.00225215,3179.7,3178.8,6.72986223]
[1768864026023,0.00225215,3179.7,3179.2,0.05220989]
[1768864026233,3.27759173,3180.2,3179.2,0.05220989]
[1768864026518,0.89155557,3180.1,3179.2,0.05220989]
[1768864026709,1.11085435,3180.6,3179.2,6.78207212]
[1768864026913,0.8918022,3180.5,3179.2,0.05220989]
[1768864027112,0.8918022,3180.4,3179.8,0.05220989]
[1768864027314,4.16959206,3180.3,3179.2,0.00306658]
[1768864027511,3.27759173,3180.1,3178.0,3.34641677]
[1768864027714,4.16964654,3180.0,3178.0,3.34641677]
[1768864027921,0.89205481,3179.9,3178.2,6.72986223]
[1768864028121,0.89205481,3179.8,3178.3,6.72986223]
[1768864028320,0.15733,3180.1,3178.4,10.076279]
[1768864028527,0.89226402,3180.0,3178.5,3.34641677]
[1768864028723,0.89226402,3179.9,3178.8,6.72986223]
[1768864028922,0.15733,3180.1,3178.8,6.72986223]
[1768864029130,0.89226138,3180.0,3178.9,6.72986223]
[1768864029429,0.89226138,3179.9,3178.4,0.00307793]
[1768864029625,0.89226138,3179.8,3178.4,6.73294016]
[1768864029924,0.89226138,3179.7,3178.4,6.73294016]
[1768864030231,0.15733,3180.0,3178.4,6.73294016]
[1768864030426,0.89276461,3179.9,3178.5,6.72986223]
[1768864030624,0.89276461,3179.8,3178.5,6.72986223]
[1768864030828,0.89276461,3179.7,3178.6,6.72986223]
[1768864031028,0.15733,3180.0,3178.5,6.72986223]
[1768864031229,0.89286328,3179.9,3178.5,6.72986223]
[1768864031430,0.89286328,3179.8,3178.6,6.72986223]
[1768864031630,0.89286328,3179.7,3179.2,0.01126916]
[1768864031830,0.15733,3180.0,3179.4,0.02253832]
[1768864032033,0.89322226,3179.9,3178.4,3.3494947]
[1768864032329,0.89322226,3179.8,3178.7,6.72986223]
[1768864032530,0.89322226,3179.7,3179.2,0.01126916]
[1768864032828,0.15733,3180.0,3179.4,0.0204844]
[1768864033029,0.89330339,3179.9,3179.4,0.0204844]
[1768864033225,0.89330339,3179.8,3179.4,0.0204844]
[1768864033430,0.89330339,3179.7,3179.4,0.0204844]
[1768864033630,0.15733,3180.0,3179.4,0.0204844]
[1768864033829,0.89332799,3179.9,3179.7,0.0204844]
[1768864034034,0.15733,3180.0,3178.4,3.3494947]
[1768864034035,0.89332799,3179.8,3178.4,3.3494947]
[1768864034225,0.89332799,3179.7,3178.7,6.72986223]
[1768864034528,0.49197855,3179.6,3178.9,6.72986223]
[1768864034732,0.49197855,3179.5,3178.7,6.72986223]
[1768864034933,0.49197855,3179.4,3178.7,6.72986223]
[1768864035123,0.49197855,3179.3,3178.9,6.72986223]
[1768864035322,0.03969726,3179.2,3179.0,6.72986223]
[1768864035527,0.15733,3179.9,3178.6,6.72986223]
[1768864035829,0.89335842,3179.8,3178.7,6.72986223]
[1768864036026,0.89335842,3179.7,3178.7,6.72986223]
[1768864036226,0.15733,3179.9,3178.4,3.3494947]
[1768864036227,0.15733,3179.9,3178.8,6.72986223]
[1768864036429,0.89330808,3179.8,3178.7,6.72986223]
[1768864036629,0.89330808,3179.7,3178.7,6.72986223]
[1768864036830,0.15733,3179.9,3178.8,6.72986223]
[1768864037029,0.89337978,3179.8,3178.7,6.72986223]
[1768864037229,0.89337978,3179.7,3178.7,6.72986223]
[1768864037423,0.15733,3179.9,3178.7,6.72986223]
[1768864037724,0.89359514,3179.8,3178.4,0.00307793]
[1768864037923,0.89359514,3179.7,3178.7,6.72986223]
[1768864038129,0.15733,3179.9,3178.7,6.72986223]
[1768864038334,1.11085435,3180.3,3179.3,0.01059485]
[1768864038533,1.65748532,3180.4,3179.3,0.01059485]
[1768864038534,0.89373653,3180.2,3179.3,0.01059485]
[1768864038737,0.89373653,3180.1,3179.3,0.01059485]
[1768864038941,0.15731,3180.4,3179.4,6.72986223]
[1768864039233,0.89377058,3180.3,3179.3,0.01059485]
[1768864039440,0.89377058,3180.2,3179.8,0.01059485]
[1768864039631,0.89377058,3180.1,3179.8,0.01059485]
[1768864039937,0.15731,3180.4,3179.8,0.01059485]
[1768864040139,0.89382978,3180.3,3179.8,0.01059485]
[1768864040435,0.89382978,3180.2,3180.0,0.01059485]
[1768864040637,0.15731,3180.4,3180.0,0.01059485]
[1768864040839,0.89380834,3180.3,3180.0,0.01059485]
[1768864041038,0.89380834,3180.2,3180.0,0.01059485]
[1768864041334,0.15731,3180.4,3178.9,3.34641677]
[1768864041537,0.89378156,3180.3,3179.1,6.72986223]
[1768864041840,0.00351254,3180.5,3179.5,6.72986223]
[1768864042035,0.00351254,3180.5,3179.8,6.72986223]
[1768864042240,0.00351254,3180.5,3179.7,6.72986223]
[1768864042635,0.00351254,3180.5,3179.3,3.34641677]
[1768864042832,0.00351254,3180.5,3179.6,6.72986223]
[1768864043137,1.11085435,3181.0,3178.8,6.49341677]
[1768864043138,1.11085435,3181.0,3179.3,3.27987234]
[1768864043341,0.89386033,3180.9,3179.6,3.27987234]
[1768864043539,1.26812435,3181.3,3179.6,3.27987234]
[1768864043838,0.89361051,3181.2,3179.7,6.72986223]
[1768864044040,0.89361051,3181.1,3179.7,6.72986223]
[1768864044237,0.89361051,3181.0,3179.8,6.72986223]
[1768864044441,0.89361051,3180.9,3179.8,6.72986223]
[1768864044640,0.00269454,3181.1,3179.9,6.72986223]
[1768864044838,0.89330122,3181.0,3179.9,6.72986223]
[1768864045140,0.89330122,3180.9,3180.1,6.72986223]
[1768864045336,0.00269454,3181.1,3179.6,3.27987234]
[1768864045541,0.00269454,3181.1,3180.1,3.27987234]
[1768864045738,0.15724,3181.9,3180.1,3.27987234]
[1768864045943,1.05054045,3181.8,3180.3,6.72986223]
[1768864046133,1.02545516,3181.8,3180.3,3.27987234]
[1768864046336,7.17273976,3183.0,3178.4,0.00307793]
[1768864046337,3.30315704,3183.5,3181.7,3.27987234]
[1768864046543,3.30315704,3184.6,3183.1,5.70440707]
[1768864046843,3.30315704,3183.9,3183.1,0.00300002]
[1768864047344,3.30315704,3184.5,3183.5,5.70440707]
[1768864047543,3.30315704,3184.5,3183.2,5.70440707]
[1768864047738,3.30315704,3184.5,3183.1,0.00300002]
[1768864047739,0.00407951,3184.6,3183.4,5.70440707]
[1768864048140,3.30723655,3184.6,3183.3,3.147]
[1768864048339,3.30723655,3184.6,3183.3,8.85140707]
[1768864049039,3.30723655,3184.6,3183.3,5.70440707]
[1768864049240,3.30723655,3184.6,3182.2,0.15722]
[1768864049241,3.30315704,3183.6,3181.2,3.27987234]
[1768864049947,3.30315704,3183.6,3181.3,3.146]
[1768864050149,3.46032704,3183.3,3181.3,3.146]
[1768864050349,3.46032704,3183.3,3181.4,2.66166753]
[1768864050732,3.46032704,3183.3,3181.3,0.00255382]
[1768864050946,3.46032704,3183.3,3181.3,3.14855382]
[1768864051846,3.46032704,3183.3,3181.4,2.66166753]
[1768864052344,3.46032704,3183.3,3181.5,3.146]
[1768864052649,3.46032704,3183.3,3181.3,0.00255382]
[1768864053042,0.15717,3183.2,3181.3,0.00255382]
[1768864053238,3.46032704,3183.2,3181.3,0.00255382]
[1768864053547,3.30315704,3182.1,3179.7,3.27987234]
[1768864053741,3.30315704,3181.8,3179.7,3.27987234]
[1768864053946,2.66166753,3182.4,3179.6,2.66166753]
[1768864053947,3.46041704,3181.5,3179.6,3.145]
[1768864054542,3.46434421,3181.5,3179.6,0.00283214]
[1768864055938,3.46434421,3181.5,3177.9,25.162]
[1768864055939,0.15731,3180.4,3178.3,3.27987234]
[1768864056257,0.15733,3180.0,3177.9,5.80666753]
[1768864056553,0.15733,3180.0,3177.9,5.94153987]
[1768864056750,0.15733,3180.0,3178.4,2.66166753]
[1768864057045,0.15733,3180.0,3178.4,2.66574865]
[1768864057643,0.15733,3180.0,3178.4,0.00408112]
[1768864057855,3.46048704,3180.0,3178.4,0.00408112]
[1768864059963,0.15734,3179.8,3178.4,0.00408112]
[1768864060150,3.46049704,3179.8,3178.4,0.00408112]
[1768864060662,0.15735,3179.7,3178.4,0.00408112]
[1768864060846,2.66166753,3180.2,3177.1,2.66166753]
[1768864060847,3.30315704,3179.5,3177.1,2.66166753]
[1768864061047,3.30315704,3179.5,3176.6,3.27987234]
[1768864061253,0.15737,3179.2,3176.8,3.27987234]
[1768864061854,0.15739,3178.9,3176.8,3.28392301]
[1768864062058,0.15739,3178.7,3176.8,0.00405067]
[1768864062244,3.39483462,3177.9,3175.8,3.146]
[1768864062446,3.39483462,3177.0,3174.7,3.52567151]
[1768864062652,0.1575,3176.7,3174.5,3.52567151]
[1768864063056,3.39483462,3177.0,3174.2,1.5136812]
[1768864063554,1.29414239,3176.9,3174.2,1.51707318]
[1768864063762,3.39483462,3174.5,3169.6,3.94281464]
[1768864063952,0.15768,3173.0,3169.4,0.15786]
[1768864064148,3.39483462,3173.1,3170.8,3.52567151]
[1768864064348,3.39483462,3173.1,3170.9,3.52567151]
[1768864064548,3.39483462,3172.9,3170.2,3.52567151]
[1768864064756,3.39483462,3172.9,3170.2,0.00342534]
[1768864064757,3.39483462,3172.5,3170.2,0.00342534]
[1768864064946,0.00311341,3172.9,3170.2,3.52909685]
[1768864065149,3.39794803,3172.9,3171.3,0.02786654]
[1768864065349,3.39483462,3172.6,3170.2,0.00342534]
[1768864065551,3.39483462,3172.0,3170.2,0.00342534]
[1768864066060,3.39483462,3172.0,3168.8,3.52567151]
[1768864066353,3.39483462,3172.0,3169.0,3.52567151]
[1768864067149,3.39483462,3172.0,3169.0,0.0028526]
[1768864067349,3.39483462,3170.9,3167.2,3.52567151]
[1768864067546,3.39483462,3170.6,3167.2,3.52567151]
[1768864067956,3.39483462,3169.3,3167.1,1.52783234]
[1768864068455,3.39717019,3169.3,3167.1,1.53175921]
[1768864069059,0.00233557,3169.3,3167.2,3.52567151]
[1768864069259,0.00233557,3169.3,3167.1,1.53175921]
[1768864069260,3.39717019,3169.3,3167.1,1.53175921]
[1768864069562,3.39483462,3169.1,3167.1,1.53175921]
[1768864069756,3.39483462,3169.0,3167.1,1.53175921]
[1768864069961,3.39483462,3168.8,3167.1,1.53175921]
[1768864070456,3.56738523,3169.0,3167.1,1.53175921]
[1768864070457,3.39483462,3168.6,3167.1,1.53175921]
[1768864070658,3.39483462,3168.5,3167.1,1.53175921]
[1768864070865,3.152,3168.8,3167.1,1.53175921]
[1768864071051,3.56738523,3169.0,3167.1,1.53175921]
[1768864071259,0.00233557,3169.3,3167.1,1.53175921]
[1768864071260,3.39483462,3168.8,3167.1,1.53175921]
[1768864072350,3.39483462,3168.6,3167.1,1.53175921]
[1768864072555,3.56738523,3169.0,3167.1,1.53175921]
[1768864072556,3.39717019,3169.3,3167.1,1.53175921]
[1768864073267,0.00233557,3169.3,3167.2,3.52814923]
[1768864073853,3.153,3171.0,3167.7,3.52814923]
[1768864074052,0.15775,3171.5,3167.9,3.52814923]
[1768864074250,1.61030573,3176.0,3167.8,3.153]
[1768864074251,3.79693696,3172.5,3168.8,3.52814923]
[1768864074453,0.15774,3171.8,3168.8,3.52814923]
[1768864074960,0.00318792,3171.8,3169.2,3.52814923]
[1768864075271,3.54388044,3173.7,3170.1,3.68596923]
[1768864075563,3.70152044,3173.7,3170.3,3.68595923]
[1768864076156,3.70152044,3173.7,3170.5,3.52814923]
[1768864076363,3.70159044,3172.3,3170.5,0.00375508]
[1768864076865,3.54388044,3172.9,3170.5,0.00375508]
[1768864077052,4.992,3173.1,3170.5,0.00375508]
[1768864077053,3.54388044,3172.8,3170.5,0.00375508]
[1768864077254,0.15769,3172.7,3170.5,0.00375508]
[1768864077455,0.15769,3172.7,3170.5,3.53190431]
[1768864077662,3.54388044,3173.6,3170.6,3.154]
[1768864077966,3.15735758,3173.7,3170.7,3.52814923]
[1768864077967,3.54388044,3173.3,3170.7,3.52814923]
[1768864078470,3.54388044,3172.3,3170.5,0.00375508]
[1768864078660,3.54388044,3172.1,3169.4,3.154]
[1768864079257,3.54388044,3172.1,3168.7,3.52814923]
[1768864079258,0.15776,3171.5,3168.7,3.52814923]
[1768864079459,0.15776,3171.5,3169.2,3.52814923]
[1768864079665,3.54388044,3172.1,3169.4,3.52814923]
[1768864080562,3.54388044,3171.5,3169.2,0.00355316]
[1768864080768,0.15779,3170.7,3169.2,0.00355316]
[1768864080969,0.1578,3170.5,3169.2,0.00355316]
[1768864081161,3.70169044,3170.4,3169.2,0.00355316]
[1768864081362,3.70169044,3170.4,3168.1,3.52814923]
[1768864081563,0.0033331,3170.7,3168.1,3.52814923]
[1768864081765,0.0033331,3170.7,3169.0,7.09553446]
[1768864082260,0.0033331,3170.7,3169.0,7.09699485]
[1768864082560,0.0033331,3170.7,3169.0,3.53117812]
[1768864083165,3.70169044,3170.4,3169.0,0.00302889]
[1768864084363,0.0033331,3170.7,3169.0,0.00302889]
[1768864086772,0.0033331,3170.7,3169.0,3.53117812]
[1768864087764,3.54721354,3170.7,3169.0,0.00302889]
[1768864087968,0.15781,3170.3,3169.0,0.00302889]
[1768864088566,3.70170044,3170.2,3169.0,0.00302889]
[1768864089068,0.0033331,3170.7,3169.0,0.00302889]
[1768864090472,0.0033331,3170.7,3169.0,3.53117812]
[1768864091170,3.54721354,3170.7,3169.0,0.00302889]
[1768864091374,3.70170044,3170.2,3169.0,0.00302889]
[1768864091668,3.70171044,3169.9,3168.0,3.156]
[1768864092667,3.70171044,3169.9,3168.0,3.15832906]
[1768864093163,3.54388044,3169.9,3168.0,3.15832906]
[1768864093380,0.0033331,3170.7,3168.0,3.15832906]
[1768864093381,3.70168044,3170.5,3168.1,3.52814923]
[1768864093568,3.54388044,3170.5,3168.1,3.52814923]
[1768864093879,3.54388044,3170.5,3168.2,6.075]
[1768864094870,0.0033331,3170.7,3168.5,3.52814923]
[1768864095076,3.54721354,3170.7,3168.6,3.156]
[1768864095275,3.54721354,3170.7,3168.0,0.00232906]
[1768864095276,3.54388044,3170.3,3168.0,0.00232906]
[1768864095577,3.70169044,3170.3,3168.1,1.395]
[1768864095770,3.70169044,3170.3,3168.1,8.07914923]
[1768864095974,3.70169044,3170.3,3168.2,7.491]
[1768864096176,3.70169044,3170.3,3168.1,3.52814923]
[1768864096373,3.70169044,3170.3,3168.3,4.334]
[1768864097676,3.70169044,3170.3,3168.4,4.332]
[1768864097877,3.70169044,3170.3,3168.4,7.488]
[1768864098078,3.54388044,3170.0,3168.0,0.00232906]
[1768864098384,0.15785,3169.6,3168.1,3.156]
[1768864098689,0.15781,3170.3,3168.1,3.156]
[1768864099282,0.15778,3170.9,3168.3,3.52814923]
[1768864099890,3.54388044,3171.1,3168.4,3.52814923]
[1768864100079,0.15775,3171.6,3168.7,3.52814923]
[1768864100378,0.1577,3172.6,3169.2,3.52814923]
[1768864100575,3.54388044,3172.8,3169.8,3.52814923]
[1768864100775,3.70162044,3171.7,3169.9,3.157]
[1768864100978,3.54388044,3171.7,3169.9,3.157]
[1768864101174,3.54669513,3171.7,3169.9,3.157]
[1768864101394,3.54669513,3171.7,3170.0,7.485]
[1768864101587,0.00281469,3171.7,3170.0,7.485]
[1768864102193,0.00281469,3171.7,3170.1,3.52814923]
[1768864102389,0.00281469,3171.7,3170.2,7.482]
[1768864102594,1.04717714,3173.2,3170.3,3.52814923]
[1768864102784,1.5863051,3174.4,3170.6,3.52814923]
[1768864102983,0.15763,3174.1,3170.8,3.49585284]
[1768864103196,1.30816146,3174.0,3171.0,3.49585284]
[1768864103397,0.25358162,3174.8,3170.9,3.156]
[1768864103398,1.09932564,3174.9,3171.2,3.49585284]
[1768864103598,2.76351676,3175.9,3171.1,6.71002958]
[1768864103599,0.8637158,3174.8,3171.7,3.49585284]
[1768864103792,0.0038082,3174.9,3171.9,3.49585284]
[1768864104005,0.0038082,3174.9,3172.0,3.49585284]
[1768864104294,0.0038082,3174.9,3172.2,3.49585284]
[1768864104895,1.09932564,3176.2,3172.3,3.141]
[1768864105090,0.86231208,3176.1,3172.6,3.49585284]
[1768864105291,3.45797814,3176.9,3173.0,3.49585284]
[1768864105500,0.86045641,3176.8,3173.4,6.63685284]
[1768864105690,3.45797814,3177.5,3173.7,3.141]
[1768864105890,0.86077266,3177.4,3173.9,3.49585284]
[1768864106095,3.46078351,3177.5,3174.1,3.49585284]
[1768864106496,3.45797814,3176.4,3174.2,3.156]
[1768864106693,3.61548814,3176.3,3174.2,3.156]
[1768864106888,3.45797814,3176.3,3174.1,3.49585284]
[1768864107201,0.00280537,3177.5,3174.4,3.49585284]
[1768864107501,0.00280537,3177.5,3174.5,3.47066584]
[1768864107693,0.00280537,3177.5,3174.6,3.49585284]
[1768864107992,0.00280537,3177.5,3173.7,0.00340852]
[1768864107993,0.00280537,3177.5,3174.8,3.49585284]
[1768864108299,0.00280537,3177.5,3175.0,3.49585284]
[1768864108711,3.45797814,3177.2,3175.1,3.155]
[1768864108893,3.61544814,3177.2,3175.2,3.155]
[1768864109205,3.45797814,3177.2,3174.4,3.49585284]
[1768864109397,3.45797814,3178.7,3175.4,3.49585284]
[1768864109599,0.15741,3178.4,3175.6,3.49585284]
[1768864109807,3.45797814,3178.7,3175.6,3.49585284]
[1768864110302,3.46068687,3178.7,3175.8,3.49585284]
[1768864110505,0.00270873,3178.7,3176.0,3.49585284]
[1768864110701,3.45797814,3178.6,3176.1,4.728]
[1768864111007,3.45797814,3178.1,3176.0,0.002709]
[1768864111395,0.00270873,3178.7,3176.0,3.49856184]
[1768864112205,3.46068687,3178.7,3176.1,3.991]
[1768864112409,3.45797814,3178.5,3176.2,7.463]
[1768864112895,0.00270873,3178.7,3176.3,3.49585284]
[1768864113207,0.00270873,3178.7,3176.4,3.153]
[1768864113407,0.00270873,3178.7,3176.5,3.49585284]
[1768864114002,3.46068687,3178.7,3176.5,3.49585284]
[1768864114205,3.46068687,3178.7,3176.2,3.152]
[1768864114407,3.61539814,3178.1,3176.2,3.152]
[1768864114607,3.61539814,3178.1,3176.0,0.002709]
[1768864114908,3.61539814,3178.1,3176.3,3.152]
[1768864115109,0.00270873,3178.7,3176.3,3.152]
[1768864115409,0.00270873,3178.7,3176.3,6.64785284]
[1768864116305,0.00270873,3178.7,3176.4,2.429]
[1768864116602,0.00270873,3178.7,3176.4,5.581]
[1768864117012,0.00270873,3178.7,3176.5,7.454]
[1768864117898,0.00270873,3178.7,3176.3,3.49585284]
[1768864118108,0.00270873,3178.7,3176.4,7.451]
[1768864118301,3.45797814,3177.5,3176.0,0.002709]
[1768864118613,0.00270873,3178.7,3176.0,0.002709]
[1768864118614,3.61539814,3178.1,3176.0,0.002709]
[1768864119112,3.45797814,3178.1,3176.0,0.002709]
[1768864119307,3.45797814,3178.1,3176.1,3.933]
[1768864119508,0.1574,3178.6,3176.2,3.49585284]
[1768864120310,0.00270873,3178.7,3176.2,3.49585284]
[1768864120701,0.00270873,3178.7,3176.8,3.49585284]
[1768864121006,3.45797814,3179.8,3176.5,3.49585284]
[1768864121210,3.61536814,3178.8,3176.6,5.002]
[1768864121506,3.45797814,3178.8,3176.6,3.38491055]
[1768864121809,3.45797814,3178.8,3176.7,4.157]
[1768864122009,3.46107127,3178.8,3176.6,3.38491055]
[1768864122209,3.46107127,3178.8,3176.8,4.294]
[1768864122408,0.00309313,3178.8,3176.8,4.294]
[1768864122905,0.00309313,3178.8,3176.9,3.38491055]
[1768864123609,0.15733,3180.1,3177.3,6.53891055]
[1768864123910,0.15733,3180.1,3177.7,3.38491055]
[1768864124113,3.30698977,3180.3,3177.9,3.38491055]
[1768864124303,0.15729,3180.9,3177.9,3.38491055]
[1768864124609,0.16130766,3180.9,3178.5,3.38491055]
[1768864124911,3.31100743,3180.9,3178.7,3.38491055]
[1768864125106,0.1573,3180.6,3178.7,3.38491055]
[1768864125316,0.00401766,3180.9,3178.7,3.38491055]
[1768864125508,0.00401766,3180.9,3178.9,3.38491055]
[1768864125911,1.5136812,3182.1,3179.4,3.38491055]
[1768864126102,0.15729,3180.9,3178.6,3.38491055]
[1768864126309,3.46428977,3180.7,3178.7,1.006]
[1768864126503,3.30698977,3180.7,3178.5,0.00370446]
[1768864126810,0.05473424,3182.0,3178.5,0.00370446]
[1768864126811,3.30698977,3180.0,3178.5,0.00370446]
[1768864127008,3.31107207,3180.0,3178.5,0.00370446]
[1768864127214,3.31107207,3180.0,3178.6,3.15]
[1768864127536,3.31107207,3180.0,3178.5,0.00370446]
[1768864127819,0.15737,3179.3,3178.3,3.149]
[1768864128003,0.15737,3179.3,3178.4,3.149]
[1768864128207,0.15737,3179.3,3177.2,3.38491055]
[1768864128518,3.30698977,3179.7,3177.4,3.38491055]
[1768864128714,3.30698977,3179.7,3177.5,3.38491055]
[1768864129016,3.46434977,3179.5,3177.4,0.0030937]
[1768864129210,3.46434977,3179.5,3177.5,4.155]
[1768864129412,3.30698977,3179.5,3177.5,4.155]
[1768864129607,0.0040823,3180.0,3177.5,4.155]
[1768864129813,3.31107207,3180.0,3177.6,5.135]
[1768864130115,0.15734,3179.9,3177.6,5.135]
[1768864130813,3.31107207,3180.0,3177.7,3.38491055]
[1768864131216,0.0040823,3180.0,3177.7,3.38491055]
[1768864132405,0.0040823,3180.0,3177.9,3.38491055]
[1768864132612,0.0040823,3180.0,3178.0,4.854]
[1768864132918,0.0040823,3180.0,3178.1,3.39230461]
[1768864133519,0.0040823,3180.0,3178.3,3.39230461]
[1768864134122,0.0040823,3180.0,3178.4,10.81530461]
[1768864134619,0.0040823,3180.0,3178.4,3.39230461]
[1768864134810,0.0040823,3180.0,3178.5,4.855]
[1768864135008,0.0040823,3180.0,3177.8,3.39230461]
[1768864135009,0.0040823,3180.0,3178.6,4.273]
[1768864135216,0.0040823,3180.0,3178.6,7.421]
[1768864135618,0.0040823,3180.0,3177.8,3.39230461]
[1768864135816,0.0040823,3180.0,3178.0,3.39230461]
[1768864136022,0.0040823,3180.0,3178.1,7.419]
[1768864136423,3.65865614,3179.8,3177.4,0.0030937]
[1768864136621,0.15737,3179.3,3177.4,0.0030937]
[1768864136830,0.15737,3179.3,3177.5,7.418]
[1768864137125,0.15737,3179.3,3177.4,0.0030937]
[1768864137310,0.15737,3179.3,3177.5,4.853]
[1768864137514,0.15737,3179.3,3177.4,0.0030937]
[1768864137716,0.15737,3179.3,3177.5,3.148]
[1768864137717,1.46340912,3179.2,3177.5,3.148]
[1768864137923,1.30603912,3179.1,3177.4,0.0030937]
[1768864138119,0.86137006,3179.0,3177.5,3.148]
[1768864138322,0.15737,3179.2,3177.5,3.148]
[1768864138529,1.30622047,3179.1,3177.5,3.148]
[1768864138731,0.8615092,3179.0,3177.5,3.148]
[1768864139024,0.15737,3179.2,3177.5,3.148]
[1768864139225,1.30623219,3179.1,3177.5,3.148]
[1768864139524,1.30636975,3179.0,3177.5,3.148]
[1768864139728,0.86151888,3178.9,3177.5,3.148]
[1768864139924,0.15737,3179.2,3177.5,3.148]
[1768864140123,1.30465704,3179.1,3177.5,3.148]
[1768864140329,1.30465704,3179.0,3177.5,3.148]
[1768864140518,4.80591643,3178.9,3177.4,0.0030937]
[1768864140720,4.60064178,3178.6,3176.0,3.39230461]
[1768864140928,0.15744,3177.8,3175.7,3.148]
[1768864141219,1.69906155,3177.7,3175.7,3.148]
[1768864141421,1.09932564,3178.3,3175.8,3.39230461]
[1768864141615,0.86196594,3178.2,3175.8,3.39230461]
[1768864141816,1.09932564,3178.6,3176.0,3.39230461]
[1768864141817,0.00265597,3178.3,3176.0,3.39230461]
[1768864142012,0.86308724,3178.2,3176.0,3.39230461]
[1768864142215,0.00265597,3178.3,3176.0,3.39230461]
[1768864142718,0.00265597,3178.3,3175.8,0.00285098]
[1768864142719,0.00265597,3178.3,3176.2,3.39230461]
[1768864143415,1.30552266,3178.2,3176.2,3.39230461]
[1768864143617,0.86328142,3178.1,3176.3,5.775]
[1768864143825,0.00265597,3178.3,3176.4,3.39230461]
[1768864144515,0.00265597,3178.3,3176.5,3.149]
[1768864145115,0.00265597,3178.3,3176.6,3.149]
[1768864145316,0.00265597,3178.3,3176.7,3.149]
[1768864145618,0.00265597,3178.3,3176.7,6.54130461]
[1768864145813,0.00265597,3178.3,3176.8,3.39230461]
[1768864146220,0.00265597,3178.3,3176.9,3.149]
[1768864147131,0.86358259,3178.2,3176.8,3.149]
[1768864147428,0.00265597,3178.3,3176.8,3.149]
[1768864147628,0.86357325,3178.2,3176.8,3.149]
[1768864147837,0.00265597,3178.3,3176.8,3.149]
[1768864149235,0.8638491,3178.2,3176.4,3.39230461]
[1768864149436,0.00265597,3178.3,3176.8,4.253]
[1768864149735,0.86385196,3178.2,3176.8,4.253]
[1768864149926,0.00265597,3178.3,3176.8,4.253]
[1768864151733,0.00265597,3178.3,3176.9,7.399]
[1768864153536,0.00265597,3178.3,3177.0,3.39230461]
[1768864154932,0.15738,3178.9,3177.0,3.39230461]
[1768864155126,0.8640064,3178.8,3177.2,3.39230461]
[1768864155438,1.09932564,3179.2,3177.2,3.39230461]
[1768864155737,1.30728251,3179.1,3177.2,3.39230461]
[1768864155937,0.8643445,3179.0,3177.2,3.39230461]
[1768864156236,0.15741,3178.4,3176.6,3.39230461]
[1768864156441,0.8643445,3178.3,3176.7,5.22]
[1768864157325,0.8643445,3178.3,3176.6,3.39230461]
[1768864157326,0.8643445,3178.3,3176.8,4.242]
[1768864157545,0.8643445,3178.3,3176.9,3.149]
[1768864157730,0.8643445,3178.2,3176.9,3.149]
[1768864157940,1.09932564,3178.6,3176.9,3.149]
[1768864158841,0.44033478,3178.5,3176.9,3.149]
[1768864159037,0.86476809,3178.4,3177.0,3.39230461]
[1768864159233,0.00232812,3179.1,3177.1,3.39230461]
[1768864159542,0.86499502,3179.0,3177.1,3.39230461]
[1768864159847,0.00232812,3179.1,3177.1,3.39230461]
[1768864160341,0.00232812,3179.1,3177.4,3.39230461]
[1768864161340,1.09932564,3180.2,3177.4,3.39230461]
[1768864161642,1.30343665,3180.1,3177.9,3.39230461]
[1768864161941,1.30341603,3180.0,3177.9,3.39230461]
[1768864162130,0.86535388,3179.9,3177.9,3.39230461]
[1768864162330,0.86556171,3179.8,3178.0,7.385]